Cogmind - Beta 10.2 *** ADVENTURER MODE // 2020.11.06 @ 03:47:11 // Halloween2020/ForbiddenLore Player: Ms Vella Result: Destroyed by G-50 Soldier with Heavy Laser Performance ------------- Evolutions (4) 2000 Regions Visited (9) 1800 Robots Destroyed (103) 515 Value Destroyed (3690) 3690 Prototype IDs (11) 220 Alien Tech Used (0) 0 Bonus (641) 641 TOTAL SCORE: 8866 Bonus ------- High Alert Combat Kills 493 Follower Combat Kills 227 Aligned with FarCom 300 Friendly Fire -379 Cogmind --------- Core Integrity 0/850 Matter 236/300 Energy 97/100 System Corruption 24% Temperature Cool (9) Movement Walking (220) Ox3 Location -6/Extension Parts ------- > --- POWER (1) -------- (None) > --- PROPULSION (2) --- Titanium Leg Titanium Leg > --- UTILITY (8) ------ High-capacity Storage Unit High-capacity Storage Unit High-capacity Storage Unit Improved Signal Interpreter Improved Targeting Computer Core Analyzer > --- WEAPON (4) ------- Katana Ripper Ripper > --- INVENTORY (28) --- Light Angular Momentum Engine Light Angular Momentum Engine Carbon-fiber Leg Carbon-fiber Leg Carbon-fiber Leg Carbon-fiber Leg Titanium Leg Armored Leg Improved Gravmag System Improved Gravmag System Gravmag Array Coolant Injector Large Storage Unit Large Storage Unit Improved Particle Charger Improved Datajack Peak State ------------ > --- POWER ------------ Light Angular Momentum Engine > --- PROPULSION ------- Myomer Leg Myomer Leg > --- UTILITY ---------- Improved Heat Sink High-capacity Storage Unit High-capacity Storage Unit High-capacity Storage Unit Improved Signal Interpreter Improved Targeting Computer Core Analyzer Improved Light Armor Plating > --- WEAPON ----------- High-powered Shock Rifle Flak Gun Gauss Cannon Bore Cannon > --- INVENTORY -------- Light Angular Momentum Engine Light Angular Momentum Engine Light Angular Momentum Engine Light Angular Momentum Engine Carbon-fiber Leg Carbon-fiber Leg Carbon-fiber Leg Carbon-fiber Leg Titanium Leg Titanium Leg Titanium Leg Titanium Leg Improved Gravmag System Improved Gravmag System Gravmag Array Large Storage Unit Large Storage Unit Improved Datajack Katana Ripper Ripper [Rating: 62] Favorites ----------- Power Deuterium Engine Engine Deuterium Engine Power Core Light Nuclear Core Propulsion Improved Carbon-fiber Leg Treads Light Treads Leg Improved Carbon-fiber Leg Utility High-capacity Storage Unit Device Improved Heat Sink Storage High-capacity Storage Unit Processor Improved Signal Interpreter Protection Improved Light Armor Plating Weapon Gauss Cannon Energy Gun Heavy Particle Gun Energy Cannon Heavy Particle Cannon Ballistic Gun Assault Rifle Ballistic Cannon Gauss Cannon Launcher Rocket Launcher Slashing Weapon Ripper Special Melee Weapon Improved Datajack Build | -11 -10 -10 -10 -9 -8 -8 -8 -6 -6 ------- Run | Scr Mat Min Exi Min Mat Sto Rec Fac Ext Slots Evolved 8 | . . . . . 4 . . 4 . Power . | . . . . . . . . . . Propulsion . | . . . . . . . . . . Utility 6 | . . . . . 4 . . 2 . Weapon 2 | . . . . . . . . 2 . Parts Attached 102 | 3 3 1 6 . 24 16 4 11 34 Power 13 | . . . 1 . 4 1 . 1 6 Engine 9 | . . . . . 1 1 . 1 6 Core 4 | . . . 1 . 3 . . . . Reactor . | . . . . . . . . . . Propulsion 21 | 2 . . 2 . 2 6 . 1 8 Treads 5 | 2 . . 1 . . 2 . . . Leg 16 | . . . 1 . 2 4 . 1 8 Wheel . | . . . . . . . . . . Hover . | . . . . . . . . . . Flight . | . . . . . . . . . . Utility 25 | . 2 . 1 . 7 3 1 5 6 Device 8 | . . . . . 2 2 . 3 1 Storage 7 | . 2 . 1 . 1 . . 2 1 Processor 9 | . . . . . 4 1 1 . 3 Hackware . | . . . . . . . . . . Protection 1 | . . . . . . . . . 1 Artifact . | . . . . . . . . . . Weapon 43 | 1 1 1 2 . 11 6 3 4 14 Energy Gun 12 | . 1 1 2 . 1 2 1 1 3 Energy Cannon 2 | . . . . . . 1 1 . . Ballistic Gun 4 | 1 . . . . 1 1 . . 1 Ballistic Cannon 14 | . . . . . 8 1 . 2 3 Launcher 6 | . . . . . 1 1 . 1 3 Special Weapon . | . . . . . . . . . . Impact Weapon . | . . . . . . . . . . Slashing Weapon 3 | . . . . . . . . . 3 Piercing Weapon . | . . . . . . . . . . Special Melee Weapon 2 | . . . . . . . 1 . 1 Unidentified Prototypes 5 | . . . 2 . 2 1 . . . Parts Lost 35 | . . 1 . . . 5 1 1 27 Power 5 | . . . . . . . . . 5 Propulsion 9 | . . . . . . 3 . . 6 Utility 9 | . . . . . . . 1 . 8 Weapon 12 | . . 1 . . . 2 . 1 8 Highest Loss Streak 12 | . . 1 . . . 2 1 1 12 Average Slot Usage (%) 94 | . 94 100 94 85 97 96 99 92 83 Engine 8 | . 14 14 10 . 1 9 9 6 5 Core 1 | . . . 3 14 7 . . . . Treads 9 | . 28 28 27 28 . . . . . Leg 10 | . . . . . 17 14 18 13 12 Device 8 | . . . . . 17 17 11 12 6 Storage 21 | . 22 28 28 28 18 18 18 20 17 Processor 13 | . . . . . 17 18 23 19 17 Energy Gun 6 | . 1 14 13 14 1 . 5 13 5 Energy Cannon 2 | . . . . . . 4 7 4 . Ballistic Gun 5 | . 26 14 9 . . 2 . . 2 Ballistic Cannon 4 | . . . . . 14 8 . 1 8 Special Melee Weapon 1 | . . . . . . . 4 . . Naked Turns . | . . . . . . . . . . Heaviest Build 134 | 13 42 42 61 61 89 89 84 103 134 Greatest Support 50 | 40 40 40 40 40 40 43 35 35 50 Greatest Overweight (x) 27 | . 1 1 3 1 2 27 2 2 8 Average Overweight (x) 1 | . . 1 1 1 1 2 2 2 1 Largest Inventory Capacity 28 | 6 16 16 18 18 20 20 20 20 28 Average Capacity 18 | 6 12 16 17 18 19 20 20 20 22 Most Carried 25 | 6 10 16 18 18 20 20 20 18 25 Average Carried 17 | 4 6 13 17 18 18 19 20 17 17 Final Capacity 28 | 6 16 16 18 18 20 20 20 20 28 Final Carried 20 | 1 10 16 18 18 20 20 20 17 17 Class Distribution -------------------- 33% | Mutant 28% | Hauler-Skirmisher 11% | Hauler-Mutant 8% | Commander-Assassin 5% | Hauler-Gunner 4% | Commander-Skirmisher 3% | Skirmisher 3% | Hauler-Assassin Dominant Class ---------------- Mutant | -10/Materials Mutant | -10/Mines Mutant | -10/Exiles Mutant | -9/Mines Hauler-Skirmisher | -8/Materials Hauler-Skirmisher | -8/Storage Hauler-Skirmisher | -8/Recycling Commander-Skirmisher | -6/Factory Hauler-Mutant | -6/Extension Resources | -11 -10 -10 -10 -9 -8 -8 -8 -6 -6 ----------- Run | Scr Mat Min Exi Min Mat Sto Rec Fac Ext Matter Collected 2318 | 200 157 133 20 50 155 512 261 203 627 Remotely . | . . . . . . . . . . Salvage Created 3957 | . 416 169 . . 447 967 226 541 1191 Parts 202 | . 24 11 . . 26 57 11 21 52 Haulers Intercepted . | . . . . . . . . . . Recyclers Shooed 4 | . . . . . 1 1 . 1 1 Parts Field Recycled . | . . . . . . . . . . Retrieved Matter . | . . . . . . . . . . Parts Self-Destructed . | . . . . . . . . . . Prevented . | . . . . . . . . . . Kills | -11 -10 -10 -10 -9 -8 -8 -8 -6 -6 ------- Run | Scr Mat Min Exi Min Mat Sto Rec Fac Ext Combat Hostiles Destroyed 87 | . 8 6 . . 12 23 4 12 22 Melee 2 | . . . . . . . . . 2 Guns 39 | . 8 6 . . 3 3 . 8 11 Cannons 30 | . . . . . 3 16 3 1 7 AOE 14 | . . . . . 6 4 . 3 1 Classes Destroyed 15 | . 3 1 . . 5 . 1 3 2 Worker 3 | . . . . . 1 2 . . . Builder 2 | . 1 . . . . 1 . . . Tunneler 1 | . . . . . 1 . . . . Recycler 4 | . 1 . . . . 3 . . . Operator 1 | . . . . . . . . . 1 Drone 2 | . . . . . . . 2 . . Watcher 3 | . . . . . 1 . . 2 . Swarmer 21 | . . 3 . . 4 8 . 2 4 Grunt 45 | . 8 3 . . 5 10 2 6 11 Brawler 1 | . . . . . . . . 1 . Duelist 2 | . . . . . . . . 1 1 Protector 2 | . . . . . . . . 2 . Sentry 11 | . . . . . 2 5 . . 4 Hunter 2 | . . . . . 2 . . . . Behemoth 2 | . . . . . . . . . 2 Butcher 1 | . . . . . . . . . 1 Best Kill Streak 12 | . 6 3 . . 7 8 2 7 12 Combat Bots Only 11 | . 4 3 . . 6 6 2 6 11 Max Kills in Single Turn 4 | . 2 2 . . 4 3 1 2 2 Gunslinging 1 | . . 1 . . . . . . . Exploded 3 | . . . . . 3 3 . 1 1 Melee 1 | . . . . . . . . . 1 Uniques/NPCs Destroyed . | . . . . . . . . . . Combat | -11 -10 -10 -10 -9 -8 -8 -8 -6 -6 -------- Run | Scr Mat Min Exi Min Mat Sto Rec Fac Ext Damage Taken 6219 | . 417 171 . . 243 978 163 458 3789 Core 1065 | . 21 24 . . 58 94 12 58 798 Absorbed by Shields . | . . . . . . . . . . Core Remaining (%) 84 | 100 . . . 82 . . 70 . . Volleys Fired 230 | . 34 15 . . 13 66 22 14 66 Largest 4 | . 2 2 . . 2 2 2 2 4 Hottest 205 | . 85 85 . . 96 123 130 103 205 Shots Fired 454 | . 68 29 . . 31 98 32 57 139 Gun 246 | . 68 29 . . 10 15 10 43 71 Cannon 189 | . . . . . 16 78 22 6 67 Launcher 19 | . . . . . 5 5 . 8 1 Special . | . . . . . . . . . . Kinetic 244 | . 61 15 . . 16 66 . 6 80 Thermal 180 | . 7 14 . . 10 27 32 43 47 Explosive 19 | . . . . . 5 5 . 8 1 Electromagnetic 11 | . . . . . . . . . 11 Robot Hit Streak 51 | . 18 10 . . 18 18 16 28 51 Robot Miss Streak 4 | . 2 1 . . 2 3 4 1 2 Penetration Max 1 | . . . . . 1 1 . . . Secondary Targets 2 | . 1 1 . . . . . . . Max Gunslinging Chain 1 | . 1 1 . . . . . . . Autonomous 83 | . . . . . 10 . . 37 36 Shots Hit Robots 408 | . 56 23 . . 25 76 62 53 113 Core Hits 182 | . 21 9 . . 22 42 10 35 43 Critical Hits 23 | . . . . . 4 11 . 1 7 Critical Kills 6 | . . . . . 1 3 . . 2 Critical Parts Destroyed 16 | . . . . . 3 8 . 1 4 Melee Attacks 70 | . . . . . . . 44 . 26 Impact . | . . . . . . . . . . Slashing 19 | . . . . . . . . . 19 Piercing . | . . . . . . . . . . Sneak Attacks 43 | . . . . . . . 35 . 8 Combat Hostiles . | . . . . . . . . . . Follow-up Attacks 6 | . . . . . . . . . 6 Damage Inflicted 10645 | . 726 341 . . 1232 2335 523 1882 3606 Guns 4493 | . 726 341 . . 299 200 130 1132 1665 Cannons 3354 | . . . . . 340 1763 275 135 841 Explosions 1871 | . . . . . 553 369 . 615 334 Melee 732 | . . . . . . . . . 732 Ramming 195 | . . . . . 40 3 118 . 34 Kinetic 3797 | . 617 157 . . 340 1363 . 135 1185 Thermal 4334 | . 109 184 . . 440 600 405 1132 1464 Explosive 1430 | . . . . . 412 369 . 615 34 Electromagnetic 157 | . . . . . . . . . 157 Impact . | . . . . . . . . . . Slashing 732 | . . . . . . . . . 732 Piercing . | . . . . . . . . . . Highest Corruption 24 | . . . . . . . . . 24 Average Corruption 23 | . . . . . . . . . 23 Corruption Purged . | . . . . . . . . . . Effects 93 | . . . . . . . . . 93 Message Errors 12 | . . . . . . . . . 12 Matter Fused 13 | . . . . . . . . . 13 Heat Flow Errors 7 | . . . . . . . . . 7 Energy Discharges 4 | . . . . . . . . . 4 Parts Rejected 2 | . . . . . . . . . 2 Data Loss (minor) 7 | . . . . . . . . . 7 Data Loss (major) 3 | . . . . . . . . . 3 Misfires 1 | . . . . . . . . . 1 Alerts 5 | . . . . . . . . . 5 Misdirections 14 | . . . . . . . . . 14 Targeting Errors 20 | . . . . . . . . . 20 Weapon Failures 5 | . . . . . . . . . 5 Overload Shots . | . . . . . . . . . . Overflow Damage 194 | . . . . . 4 20 31 9 130 Projectiles 49 | . . . . . . 20 26 . 3 Explosions 51 | . . . . . . . . 9 42 Melee 94 | . . . . . 4 . 5 . 85 Knockbacks 14 | . . . . . 3 5 . 1 5 Impact . | . . . . . . . . . . Kinetic 13 | . . . . . 3 4 . 1 5 Secondary 1 | . . . . . . 1 . . . Self-Inflicted Damage 127 | . . . . . 48 50 18 . 11 Shots 4 | . . . . . 1 3 . . . Rammed 13 | . 1 1 . . 2 . 7 . 2 Targets Rammed 24 | . 1 1 . . 2 3 14 . 3 Kicked 11 | . . . . . . 3 7 . 1 Crushed . | . . . . . . . . . . Highest Temperature 414 | . 192 151 . . 3 75 224 29 414 Average Temperature 66 | . 79 64 . . 3 27 54 7 108 Received Heat Transfer 2073 | . 291 69 . . 42 567 108 201 795 Siege Activations . | . . . . . . . . . . Robots Corrupted . | . . . . . . . . . . Combat Hostiles . | . . . . . . . . . . Parts Fried 1 | . . . . . . . 1 . . Impact Corruptions 3 | . . . . . 1 . 2 . . Robots Melted 1 | . . . . . . . . . 1 Combat Hostiles 1 | . . . . . . . . . 1 Parts Melted 8 | . . 1 . . . 1 . 1 5 Heat Transferred 5888 | . 259 444 . . 470 888 666 1444 1717 Parts Sabotaged . | . . . . . . . . . . Parts Stolen . | . . . . . . . . . . Parts Stripped . | . . . . . . . . . . Power Chain Reactions . | . . . . . . . . . . Missiles Intercepted . | . . . . . . . . . . Alert | -11 -10 -10 -10 -9 -8 -8 -8 -6 -6 ------- Run | Scr Mat Min Exi Min Mat Sto Rec Fac Ext Peak Influence 929 | . 201 164 . . 201 572 318 929 620 Initial 929 | . . 28 . . . 72 122 929 382 Average 227 | . 86 52 . . 86 348 103 879 366 Maximum Alert Level 3 | . 1 . . . 1 2 1 3 2 Low Security (%) 62 | 100 90 100 . 100 99 14 87 . 15 Level 1 15 | . 9 . . . . 36 12 . 37 Level 2 15 | . . . . . . 48 . 4 47 Level 3 7 | . . . . . . . . 95 . Level 4 . | . . . . . . . . . . Level 5 . | . . . . . . . . . . High Security . | . . . . . . . . . . Max Security . | . . . . . . . . . . Squads Dispatched 14 | . 2 . . . 3 4 1 2 2 Investigation 5 | . 2 . . . . 2 . . 1 Extermination . | . . . . . . . . . . Reinforcement 6 | . . . . . 2 2 1 . 1 Assault 2 | . . . . . . . . 2 . Garrison 1 | . . . . . 1 . . . . Intercept . | . . . . . . . . . . Construction Impeded 4 | . . . . . 1 1 1 . 1 Haulers Reinforced . | . . . . . . . . . . Stealth | -11 -10 -10 -10 -9 -8 -8 -8 -6 -6 --------- Run | Scr Mat Min Exi Min Mat Sto Rec Fac Ext Distress Signals 15 | . 1 . . . . 6 5 2 1 Communications Jammed . | . . . . . . . . . . Distress Signals . | . . . . . . . . . . Times Spotted 197 | . 11 11 . . 23 40 66 17 29 Peak Tracking Total 8 | . 5 3 . . 5 6 7 8 6 Tactical Retreats 11 | . . 2 . . 1 8 . . . Traps | -11 -10 -10 -10 -9 -8 -8 -8 -6 -6 ------- Run | Scr Mat Min Exi Min Mat Sto Rec Fac Ext Traps Triggered 8 | . 3 . . . 2 1 . . 2 Indirectly . | . . . . . . . . . . Trap Hack Attempts . | . . . . . . . . . . Triggered . | . . . . . . . . . . Disarmed . | . . . . . . . . . . Reprogrammed . | . . . . . . . . . . Reused . | . . . . . . . . . . Traps Extracted . | . . . . . . . . . . Installed . | . . . . . . . . . . Triggered . | . . . . . . . . . . Machines | -11 -10 -10 -10 -9 -8 -8 -8 -6 -6 ---------- Run | Scr Mat Min Exi Min Mat Sto Rec Fac Ext Machines Disabled 14 | . . 2 . . 1 8 . . 3 Max in Single Turn 2 | . . 1 . . 1 2 . . 2 Energy Cycler 1 | . . . . . . . . . 1 Machines Sabotaged . | . . . . . . . . . . Garrisons Compromised . | . . . . . . . . . . Overloaded Fab Kills . | . . . . . . . . . . Fab Network Shutdowns . | . . . . . . . . . . Hacking | -11 -10 -10 -10 -9 -8 -8 -8 -6 -6 --------- Run | Scr Mat Min Exi Min Mat Sto Rec Fac Ext Machines Accessed 33 | . 4 1 1 . 6 6 10 1 4 Terminals 26 | . 4 1 . . 6 5 6 . 4 Fabricators 1 | . . . . . . . . 1 . Repair Stations 1 | . . . . . . 1 . . . Recycling Units 4 | . . . . . . . 4 . . Scanalyzers . | . . . . . . . . . . Garrison Access . | . . . . . . . . . . Total Hacks 125 | . 20 2 23 . 26 14 27 2 11 Successful 85 | . 16 1 23 . 11 9 19 2 4 Failed 39 | . 4 1 . . 14 5 8 . 7 Catastrophic 2 | . . 1 . . . . 1 . . Database Lockouts 1 | . . . . . 1 . . . . Manual 60 | . 18 2 1 . 17 9 12 . 1 Terminals 94 | . 20 2 . . 26 12 23 . 11 Fabricators 2 | . . . . . . . . 2 . Repair Stations 2 | . . . . . . 2 . . . Recycling Units 4 | . . . . . . . 4 . . Scanalyzers . | . . . . . . . . . . Garrison Access . | . . . . . . . . . . Terminal Hacks 65 | . 13 1 23 . 8 4 13 . 3 Record 26 | . . . 23 . 2 . 1 . . Part Schematic 13 | . . . . . 2 . 9 . 2 Prototype ID Bank 6 | . 4 . . . . 1 1 . . Open Door 2 | . . . . . . 1 . . 1 Branch Access Points 4 | . . 1 . . 1 1 1 . . Terminal Index 1 | . 1 . . . . . . . . Scanalyzer Index 1 | . . . . . . 1 . . . Registered Components 1 | . 1 . . . . . . . . Registered Prototypes 1 | . 1 . . . . . . . . Zone Layout 10 | . 6 . . . 3 . 1 . . Fabricator Hacks 2 | . . . . . . . . 2 . Load Schematic 1 | . . . . . . . . 1 . Build 1 | . . . . . . . . 1 . Repair Station Hacks 2 | . . . . . . 2 . . . Scan Component 1 | . . . . . . 1 . . . Repair 1 | . . . . . . 1 . . . Recycling Unit Hacks . | . . . . . . . . . . Scanalyzer . | . . . . . . . . . . Garrison Access Hacks . | . . . . . . . . . . Unauthorized Hacks 16 | . 3 . . . 3 3 6 . 1 Terminals 12 | . 3 . . . 3 3 2 . 1 Botnet 12 | . 3 . . . 3 3 2 . 1 Fabricators . | . . . . . . . . . . Repair Stations . | . . . . . . . . . . Recycling Units 4 | . . . . . . . 4 . . Tunnel 4 | . . . . . . . 4 . . Scanalyzers . | . . . . . . . . . . Garrison Access . | . . . . . . . . . . Data Cores Recovered . | . . . . . . . . . . Used . | . . . . . . . . . . Hacking Detections 28 | . 4 1 . . 6 6 6 1 4 Full Trace Events 8 | . . . . . . 2 5 . 1 Feedback Events . | . . . . . . . . . . Feedback Blocked . | . . . . . . . . . . Robot Schematics Acquired . | . . . . . . . . . . Robots Built . | . . . . . . . . . . Matter . | . . . . . . . . . . Time . | . . . . . . . . . . Total Robot Build Rating . | . . . . . . . . . . Part Schematics Acquired 13 | . . . . . 2 . 9 . 2 Parts Built . | . . . . . . . . . . Matter 190 | . . . . . . . . 190 . Time 95 | . . . . . . . . 95 . Total Part Build Rating . | . . . . . . . . . . Parts Repaired 1 | . . . . . . 1 . . . Time 16 | . . . . . . 16 . . . Parts Recycled . | . . . . . . . . . . Recycled Matter . | . . . . . . . . . . Retrieved Matter . | . . . . . . . . . . Retrieved Components . | . . . . . . . . . . Parts Scanalyzed . | . . . . . . . . . . Part Schematics Acquired . | . . . . . . . . . . Parts Damaged . | . . . . . . . . . . Bothacking | -11 -10 -10 -10 -9 -8 -8 -8 -6 -6 ------------ Run | Scr Mat Min Exi Min Mat Sto Rec Fac Ext Used RIF Installer . | . . . . . . . . . . Robots Hacked . | . . . . . . . . . . Non-combat . | . . . . . . . . . . Combat . | . . . . . . . . . . Robot Hacks Applied . | . . . . . . . . . . Relay Couplers Released . | . . . . . . . . . . Robots Rewired 24 | . . . . . . . 20 . 4 Allies Hacked . | . . . . . . . . . . Hacks Repelled . | . . . . . . . . . . Allies | -11 -10 -10 -10 -9 -8 -8 -8 -6 -6 -------- Run | Scr Mat Min Exi Min Mat Sto Rec Fac Ext Total Allies 31 | . . 3 . . . . 20 . 8 Largest Group 14 | . . 3 3 3 3 . 14 6 6 Highest-Rated Group 176 | . . 40 40 40 40 . 176 96 168 Highest-Rated Ally 34 | . . 16 16 16 16 . 34 21 31 Total Orders 10 | . . . . . . . 10 . . STAY 7 | . . . . . . . 7 . . FOLLOW 3 | . . . . . . . 3 . . Ally Attacks 269 | . . 7 . . 40 . 160 13 49 Total Damage 3242 | . . 97 . . 428 . 1707 189 821 Kills 40 | . . . . . 3 . 35 . 2 Allies Corrupted . | . . . . . . . . . . Allies Melted . | . . . . . . . . . . Intel | -11 -10 -10 -10 -9 -8 -8 -8 -6 -6 ------- Run | Scr Mat Min Exi Min Mat Sto Rec Fac Ext Robot Analysis Total . | . . . . . . . . . . Derelict Logs Recovered 2 | . . 2 . . . . . . . Drone Launches . | . . . . . . . . . . Drone Recoveries . | . . . . . . . . . . Exploration | -11 -10 -10 -10 -9 -8 -8 -8 -6 -6 ------------- Run | Scr Mat Min Exi Min Mat Sto Rec Fac Ext Turns Passed 9454 | 7 778 1207 929 195 1023 1217 2041 645 1412 Spaces Moved 4472 | 1 380 636 501 107 529 481 969 257 611 Core 1 | . . . . . . 1 . . . Treads 1655 | 1 380 636 501 107 13 17 . . . Legs 2816 | . . . . . 516 463 969 257 611 Wheels . | . . . . . . . . . . Hover . | . . . . . . . . . . Flight . | . . . . . . . . . . Fastest Speed 150 | 160 160 180 180 180 150 180 185 185 150 Average Speed 181 | 160 173 180 180 180 168 197 185 185 181 Slowest Speed 1400 | 160 180 180 220 180 180 1400 185 185 360 Overloaded Moves . | . . . . . . . . . . Propulsion Burnouts . | . . . . . . . . . . Robots Hopped . | . . . . . . . . . . Cave-ins Triggered 3 | . . . . . . . . . 3 Exploration Rate (%) 55 | 1 60 99 92 42 49 61 98 8 44 Regions Visited 9 Branch Regions 6 Pre-discovered Areas 5 | . . . 1 . . . 4 . . Known Exits Taken 4 | . . . . . 1 1 1 1 . Unknown Exits Taken 5 | 1 1 1 1 1 . . . . . Scrap Searched 1 | . . 1 . . . . . . . Spaces Dug 36 | . . . . . . . 5 . 31 Terrain Destroyed 167 | . . . . . 45 47 10 23 42 Melee . | . . . . . . . . . . Projectile 61 | . . . . . 4 10 10 2 35 AOE 106 | . . . . . 41 37 . 21 7 Terrain Rammed . | . . . . . . . . . . Walls Destroyed . | . . . . . . . . . . Machines Disabled . | . . . . . . . . . . Actions | -11 -10 -10 -10 -9 -8 -8 -8 -6 -6 --------- Run | Scr Mat Min Exi Min Mat Sto Rec Fac Ext Total 5393 | 8 432 669 527 110 644 650 1151 407 795 Wait 335 | . . 10 4 4 37 58 89 116 17 Move 4460 | . 379 635 500 106 528 480 968 256 608 Hop . | . . . . . . . . . . Pick Up 97 | . 12 7 7 . 20 15 2 6 28 Fast Attach 19 | . 1 . 3 . 9 3 1 . 2 Attach 58 | . . 1 1 . 11 9 . 7 29 Detach 3 | . . . . . . . . . 3 Swap 25 | 3 2 . 2 . 4 4 3 4 3 Drop 61 | 5 3 . 10 . 20 12 3 4 4 Fire 230 | . 34 15 . . 13 66 22 14 66 Melee 63 | . . . . . . . 44 . 19 Ram . | . . . . . . . . . . Kick 22 | . . . . . 2 3 14 . 3 Crush 2 | . 1 1 . . . . . . . Escape Stasis 13 | . . . . . . . . . 13 Rewire 5 | . . . . . . . 5 . . Trap . | . . . . . . . . . . Miscellaneous . | . . . . . . . . . . Route ------- -11/Scrapyard -10/Materials (discovered 4 exits: [*Mat x2] / *Min x2) -10/Mines (discovered 3 exits: [*Mat x2] / *Exi) -10/Exiles -9/Mines -8/Materials -8/Storage -8/Recycling -6/Factory -6/Extension (discovered 1 exit: [*Fac]) History --------- Turn | Location | Event 8 | -11/Scrapyard | Discovered new exit (range 0) 8 | -11/Scrapyard | Entered Materials 8 | -10/Materials | Discovered new exit (range 7) 109 | -10/Materials | Discovered new exit (range 14) 279 | -10/Materials | Discovered new exit (range 11) 317 | -10/Materials | Build established: Mutant 532 | -10/Materials | Discovered new exit (range 11) 786 | -10/Materials | Entered Mines 788 | -10/Mines | Met a Derelict bent on vengeance 797 | -10/Mines | Discovered new exit (range 8) 1012 | -10/Mines | Learned Materials security intel 1069 | -10/Mines | Discovered new exit (range 7) 1704 | -10/Mines | Learned Materials emergency access door positions 1725 | -10/Mines | Assisted by bots powering up and referring to "LRC-V3" 1851 | -10/Mines | Deemed a non-threat by the Exiles lab entrance 1853 | -10/Mines | Discovered new exit (range 5) 1909 | -10/Mines | Joined a pair of Derelicts in attacking an 0b10 outpost 1993 | -10/Mines | Entered Exiles 1993 | -10/Exiles | Accompanied by 3 allies 2040 | -10/Exiles | Met 8R-AWN 2069 | -10/Exiles | Met EX-HEX 2207 | -10/Exiles | Met EX-DEC 2258 | -10/Exiles | Visited The Gauntlet 2486 | -10/Exiles | Learned location of Zion (-6) 2547 | -10/Exiles | Met EX-BIN 2569 | -10/Exiles | Aligned with FarCom system 2571 | -10/Exiles | Given EX-Vault access code 2628 | -10/Exiles | Opened EX-Vault 2657 | -10/Exiles | Found Prototype Leg 2657 | -10/Exiles | Identified Potential Leg 2670 | -10/Exiles | Found Prototype Energy Gun 2670 | -10/Exiles | Identified AWS/Thermal 2741 | -10/Exiles | Warned to stay clear of 0b10 Research branches 2893 | -10/Exiles | Discovered new exit (range 14) 2922 | -10/Exiles | Left Exiles lab with AWS/Thermal 2922 | -10/Exiles | Entered Mines 2922 | -9/Mines | Accompanied by 3 allies 2923 | -9/Mines | Assembled infested the area 2928 | -9/Mines | Assisted by a Guerilla fighting off Assembled 3088 | -9/Mines | Discovered new exit (range 12) 3117 | -9/Mines | Entered Materials 3117 | -8/Materials | Accompanied by 3 allies 3117 | -8/Materials | Evolved 4 slots: Utility x4 3383 | -8/Materials | Identified exit to Storage 3668 | -8/Materials | Central database locked down 3836 | -8/Materials | Build established: Hauler-Skirmisher 3916 | -8/Materials | Garrison activated, responded to threat 4140 | -8/Materials | Entered Storage 4529 | -8/Storage | Identified exit to Recycling 5159 | -8/Storage | Repaired Rocket Launcher 5352 | -8/Storage | Used back door to open Recycling access 5357 | -8/Storage | Entered Recycling 5413 | -8/Recycling | Spotter reported a threat 5415 | -8/Recycling | Spotter reported a threat 5444 | -8/Recycling | Spotter reported a threat 5528 | -8/Recycling | Spotter reported a threat 5545 | -8/Recycling | Spotter reported a threat 5545 | -8/Recycling | Spotter reported a threat 5571 | -8/Recycling | Spotter reported a threat 5624 | -8/Recycling | Spotter reported a threat 5636 | -8/Recycling | Spotter reported a threat 5640 | -8/Recycling | Spotter reported a threat 5653 | -8/Recycling | Spotter reported a threat 5659 | -8/Recycling | Spotter reported a threat 5688 | -8/Recycling | Spotter reported a threat 5689 | -8/Recycling | Spotter reported a threat 5693 | -8/Recycling | Spotter reported a threat 5706 | -8/Recycling | Spotter reported a threat 5713 | -8/Recycling | Spotter reported a threat 5736 | -8/Recycling | Spotter reported a threat 5741 | -8/Recycling | Spotter reported a threat 5746 | -8/Recycling | Spotter reported a threat 5840 | -8/Recycling | Spotter reported a threat 5852 | -8/Recycling | Spotter reported a threat 5904 | -8/Recycling | Spotter reported a threat 5951 | -8/Recycling | Spotter reported a threat 5958 | -8/Recycling | Spotter reported a threat 6004 | -8/Recycling | Spotter reported a threat 6008 | -8/Recycling | Spotter reported a threat 6008 | -8/Recycling | Spotter reported a threat 6008 | -8/Recycling | Spotter reported a threat 6008 | -8/Recycling | Spotter reported a threat 6011 | -8/Recycling | Spotter reported a threat 6026 | -8/Recycling | Spotter reported a threat 6060 | -8/Recycling | Spotter reported a threat 6061 | -8/Recycling | Spotter reported a threat 6061 | -8/Recycling | Spotter reported a threat 6061 | -8/Recycling | Spotter reported a threat 6064 | -8/Recycling | Spotter reported a threat 6115 | -8/Recycling | Spotter reported a threat 6117 | -8/Recycling | Spotter reported a threat 6126 | -8/Recycling | Spotter reported a threat 6176 | -8/Recycling | Spotter reported a threat 6179 | -8/Recycling | Spotter reported a threat 6179 | -8/Recycling | Spotter reported a threat 6218 | -8/Recycling | Spotter reported a threat 6229 | -8/Recycling | Spotter reported a threat 6295 | -8/Recycling | Spotter reported a threat 6305 | -8/Recycling | Spotter reported a threat 6307 | -8/Recycling | Spotter reported a threat 6316 | -8/Recycling | Spotter reported a threat 6396 | -8/Recycling | Spotter reported a threat 6421 | -8/Recycling | Spotter reported a threat 6428 | -8/Recycling | Discovered new exit (range 6) 6435 | -8/Recycling | Identified exit to Factory 6450 | -8/Recycling | Spotter reported a threat 6462 | -8/Recycling | Spotter reported a threat 6463 | -8/Recycling | Spotter reported a threat 6507 | -8/Recycling | Build established: Hauler-Assassin 6582 | -8/Recycling | Spotter reported a threat 6613 | -8/Recycling | Spotter reported a threat 6625 | -8/Recycling | Spotter reported a threat 6642 | -8/Recycling | Spotter reported a threat 6649 | -8/Recycling | Spotter reported a threat 6666 | -8/Recycling | Spotter reported a threat 6678 | -8/Recycling | Spotter reported a threat 6695 | -8/Recycling | Spotter reported a threat 6705 | -8/Recycling | Spotter reported a threat 6721 | -8/Recycling | Spotter reported a threat 6724 | -8/Recycling | Spotter reported a threat 6758 | -8/Recycling | Spotter reported a threat 6761 | -8/Recycling | Spotter reported a threat 6774 | -8/Recycling | Spotter reported a threat 6777 | -8/Recycling | Spotter reported a threat 6796 | -8/Recycling | Spotter reported a threat 6811 | -8/Recycling | Build established: Commander-Assassin 6829 | -8/Recycling | Spotter reported a threat 6841 | -8/Recycling | Spotter reported a threat 6841 | -8/Recycling | Spotter reported a threat 6841 | -8/Recycling | Spotter reported a threat 6882 | -8/Recycling | Spotter reported a threat 6894 | -8/Recycling | Spotter reported a threat 6894 | -8/Recycling | Spotter reported a threat 6894 | -8/Recycling | Spotter reported a threat 6935 | -8/Recycling | Spotter reported a threat 6949 | -8/Recycling | Spotter reported a threat 6949 | -8/Recycling | Spotter reported a threat 6949 | -8/Recycling | Spotter reported a threat 6992 | -8/Recycling | Spotter reported a threat 6996 | -8/Recycling | Spotter reported a threat 6996 | -8/Recycling | Spotter reported a threat 6997 | -8/Recycling | Spotter reported a threat 7045 | -8/Recycling | Spotter reported a threat 7049 | -8/Recycling | Spotter reported a threat 7050 | -8/Recycling | Spotter reported a threat 7051 | -8/Recycling | Spotter reported a threat 7103 | -8/Recycling | Spotter reported a threat 7123 | -8/Recycling | Spotter reported a threat 7123 | -8/Recycling | Spotter reported a threat 7156 | -8/Recycling | Spotter reported a threat 7156 | -8/Recycling | Spotter reported a threat 7178 | -8/Recycling | Spotter reported a threat 7186 | -8/Recycling | Spotter reported a threat 7209 | -8/Recycling | Spotter reported a threat 7239 | -8/Recycling | Spotter reported a threat 7242 | -8/Recycling | Spotter reported a threat 7256 | -8/Recycling | Spotter reported a threat 7262 | -8/Recycling | Spotter reported a threat 7298 | -8/Recycling | Spotter reported a threat 7298 | -8/Recycling | Spotter reported a threat 7348 | -8/Recycling | Spotter reported a threat 7348 | -8/Recycling | Spotter reported a threat 7349 | -8/Recycling | Spotter reported a threat 7349 | -8/Recycling | Spotter reported a threat 7396 | -8/Recycling | Spotter reported a threat 7396 | -8/Recycling | Spotter reported a threat 7398 | -8/Recycling | Entered Factory 7398 | -6/Factory | Accompanied by 6 allies 7398 | -6/Factory | Evolved 4 slots: Utility x2, Weapon x2 7707 | -6/Factory | Build established: Commander-Skirmisher 7748 | -6/Factory | First assault squad dispatched 8025 | -6/Factory | Discovered new exit (range 11) 8041 | -6/Factory | Identified exit to Extension 8043 | -6/Factory | Entered Extension 8045 | -6/Extension | Disrupted transfer network 8137 | -6/Extension | Build established: Hauler-Skirmisher 8156 | -6/Extension | Rescued a captive Derelict 8157 | -6/Extension | Rescued a captive Derelict 8311 | -6/Extension | Crushed by falling debris 8312 | -6/Extension | System corruption reached 10% 8332 | -6/Extension | Crushed by falling debris 8347 | -6/Extension | Crushed by falling debris 8374 | -6/Extension | Energy Cycler disabled 8374 | -6/Extension | Rescued a captive Derelict 8374 | -6/Extension | Rescued a captive Derelict 8374 | -6/Extension | Rescued a captive Derelict 8374 | -6/Extension | Rescued a captive Derelict 8374 | -6/Extension | Rescued a captive Derelict 8375 | -6/Extension | Rescued a captive Derelict 8378 | -6/Extension | Lost 10 parts (2n6u2w) 8378 | -6/Extension | Rescued a captive Derelict 8378 | -6/Extension | Rescued a captive Derelict 8380 | -6/Extension | Rescued a captive Derelict 8435 | -6/Extension | Destroyed 11 combat bots 8609 | -6/Extension | Core integrity fell below 50% 8791 | -6/Extension | Build established: Hauler-Mutant 9283 | -6/Extension | Build established: Hauler-Gunner 9307 | -6/Extension | Spotted B-75 Beast 9335 | -6/Extension | Spotted B-75 Beast 9369 | -6/Extension | Discovered new exit (range 15) 9387 | -6/Extension | Core integrity fell below 20% 9405 | -6/Extension | Destroyed B-75 Beast 9438 | -6/Extension | Destroyed B-75 Beast 9455 | -6/Extension | Destroyed by G-50 Soldier with Heavy Laser Last Messages --------------- 09431_ U-05 Engineer destroyed. 09433_ R-10 Processor collects Terrain Scan Processor. 09435_ R-10 Processor collects Lgt. Angular Momentum Engine. 09435_ System corrupted: Ripper targeting data glitched. 09435_ Katana follow-up attack on B-75 Beast. 09437_ R-10 Processor collects Welding Torch. 09438_ B-75 Beast destroyed. 09438_ R-10 Processor collects Lgt. Angular Momentum Engine. 09440_ Acquired Coolant Injector. 09442_ R-10 Processor collects Med. Storage Unit. 09442_ R-10 Processor collects Imp. Medium Treads. 09445_ R-10 Processor collects Carbon-fiber Leg. 09445_ R-10 Processor collects Lyr. Medium Armor Plating. 09446_ Sneak attack on R-10 Processor. 09446_ Destroyed Hpw. Tractor Beam. 09446_ Destroyed Imp. Ion Engine. 09447_ System corrupted: IFF burst signal emitted. 09450_ R-10 Processor collects Imp. Cooling System. 09453_ Acquired Lgt. Angular Momentum Engine. 09454_ R-10 Processor collects Imp. Medium Treads. Map ----- +----------------------------------------------------+ | ???????# %% % % Y"#???????????????????? | | ???????# % % % """#???????????????????? | | ???????# ####???????????????????? | | ######## % %% % #??????????????????????? | | ## #####"" #####% #??????????????????????? | | ##########"""" # % # #??????????????????????? | | ?????????###########% #??????????????????????? | | ?????????????????###+#### #??????????????????????? | | ?????????????????# ! ! # #??????????????????????? | | ?????????????????# ! # #??????????????????????? | | ?????????????????# / #??????????????????????? | | ?????????????????# ! !# #??????????????????????? | | ????????????????##! #%#??????????????????????? | | ????????????????## # #??????????????????????? | | ?????????????????######## #??????????????????????? | | ??????????????????????### #??##?##?? #???????????? | | ??????????????????????### ###%##%### ##??????????? | | ??????????????????????# %" #?????????? | | ??????????????????????# %$ R #?????????? | | ?????????????????????## #?????????? | | ?????????????????????## #?????????? | | ????????############### R ##????????? | | ??????? ] ] % ????????? | | ??????? !%!! ???????? | | ??????? =[! ???????? | | ??????? @% g ??????? | | ??????? g ??????? | | ????????############### #?????????? | | ??????????????????????# #?????????? | | ??????????????????????# *% #?????????? | | ??????????????????????# ! #?????????? | | ??????????????????????# %= #?????????? | | ??????????????????????#####;T# #######?????????? | | ???????????????????????????### < #???????????????? | | ???????????????????????????????###???????????????? | | | | | | | | | | | | | | | | | | | | | | | | | | | | | | | +----------------------------------------------------+ Best States ------------- Heat Dissipation 56 Energy Generation 18 Energy Capacity 675 Matter Stores 500 Matter Capacity 500 Sight Range 16 Terrain Scan Range 20 Terrain Scan Density 85 Armor Coverage 150 Resistance: KI 20 Resistance: TH 20 Resistance: EX 20 Resistance: EM 20 Resistance: I 20 Resistance: S 20 Resistance: P 20 Evasion (%) 40 Targeting Accuracy 8 Core Analysis 6 Recoil Reduction 2 Energy Filtering 30 Offensive Hacking 10 Item Schematics ----------------- Cld. Ion Engine | -8/Materials | Hacked Signal Interpreter | -8/Materials | Hacked Coil Gun | -8/Recycling | Hacked Mic. Nuclear Core | -8/Recycling | Hacked Hpw. Shock Rifle | -8/Recycling | Hacked Adv. Melee Analysis Suite | -8/Recycling | Hacked Coolant Injector | -8/Recycling | Hacked EM Pulse Cannon | -8/Recycling | Hacked Adv. Signal Interpreter | -8/Recycling | Hacked Hvy. Flak Cannon | -8/Recycling | Hacked Imp. Proton Missile Launcher | -8/Recycling | Hacked Adv. Target Analyzer | -6/Extension | Hacked Angular Momentum Engine | -6/Extension | Hacked Robot Schematics ------------------ None Fabricated ------------ Nothing Alien Tech Used ----------------- None Achievements -------------- None Challenges ------------ None Game ------ Seed FluxResetPerforator Manual? 0 Play Time 01:32:08 Cumulative 209.2 hours Start 2020.11.06 @ 01:43:27 End 2020.11.06 @ 03:47:11 Sessions 1 Manual Loads 0 Difficulty Adventurer Special Mode Halloween2020/ForbiddenLore Game No. 119 Rogue 0 Adventurer 119 Explorer 0 Win Type - Total 1 Types 1/0/0/0/0/0/0/0/0 Lore% 60 Gallery% 69 Achievement% 51 Wizard Run 0 Options --------- ASCII 0 Keyboard 0 Movement Mouse Keybinds 0 Fullscreen 0 Font 12/Smallcaps Map View 83x54 Tactical HUD 1 Map Filters NONE Filters NONE Steam 1 RUN: 618b34ee-819e-4960-92f4-cdf0a242c5d6